bitfinex/quotes_ETHUSD_20250813
["timestamp","ask_amount","ask_price","bid_price","bid_amount"]
[1755090093053,0.1072,4677.2,4677.1,12.0204]
[1755090093253,0.1072,4677.2,4677.1,12.4815]
[1755090094688,0.1072,4677.2,4677.1,11.161]
[1755090094852,0.6572,4677.2,4677.1,7.788]
[1755090095052,1.9757,4677.2,4677.1,7.788]
[1755090095364,2.17327,4677.2,4677.1,11.16]
[1755090097090,1.28257,4677.2,4677.1,11.16]
[1755090098056,0.85477,4677.2,4677.1,11.16]
[1755090098274,2.17327,4677.2,4677.1,11.16]
[1755090098476,1.9757,4677.2,4677.1,11.16]
[1755090099165,0.55,4677.1,4677.0,0.001]
[1755090099370,1.8890887,4677.1,4677.0,5.125]
[1755090099584,2.06812887,4677.1,4677.0,5.124]
[1755090100160,2.06812887,4677.1,4676.9,0.001]
[1755090100359,1.8890887,4677.0,4676.9,0.001]
[1755090100863,1.8890887,4677.0,4676.9,3.372]
[1755090101064,0.55,4676.9,4676.1,0.001]
[1755090101296,0.1072,4676.2,4676.1,0.001]
[1755090101472,0.1072,4676.2,4676.1,5.125]
[1755090102300,0.1072,4676.2,4676.1,9.3554]
[1755090102480,0.1072,4676.2,4676.1,9.8165]
[1755090102994,0.1072,4676.2,4676.1,9.3554]
[1755090103200,0.1072,4676.2,4676.1,9.8165]
[1755090103900,0.1072,4676.2,4676.1,9.8173]
[1755090109076,0.1072,4676.2,4676.1,8.4968]
[1755090109475,0.1072,4676.2,4676.1,9.8173]
[1755090109895,0.1072,4676.2,4676.1,9.3562]
[1755090110393,0.1072,4676.2,4676.1,8.4968]
[1755090110592,0.9778,4676.2,4676.1,5.1258]
[1755090110881,1.8685,4676.2,4676.1,8.4948]
[1755090111189,2.05535,4676.2,4676.1,8.4948]
[1755090112579,2.05535,4676.2,4676.1,8.4938]
[1755090112978,2.05535,4676.2,4676.1,5.1258]
[1755090113271,2.05535,4676.2,4676.1,8.493]
[1755090113682,2.05535,4676.2,4676.1,5.125]
[1755090114076,2.05535,4676.2,4676.1,8.493]
[1755090114485,2.05535,4676.2,4676.1,5.125]
[1755090114809,2.05535,4676.2,4676.1,8.493]
[1755090115005,2.05535,4676.2,4676.1,5.125]
[1755090115205,2.05535,4676.2,4676.1,8.493]
[1755090116006,2.05535,4676.2,4676.1,3.368]
[1755090116208,2.05535,4676.2,4676.0,0.001]
[1755090116209,0.55,4676.1,4676.0,0.001]
[1755090116509,2.25170043,4676.1,4676.0,0.001]
[1755090117384,2.25170043,4676.1,4676.0,3.368]
[1755090117584,2.23111173,4676.1,4676.0,3.368]
[1755090118479,0.755535,4676.1,4676.0,3.368]
[1755090118686,1.183335,4676.1,4676.0,3.368]
[1755090119088,2.074035,4676.1,4676.0,3.368]
[1755090120121,2.23532286,4676.1,4675.8,0.001]
[1755090120294,0.7779922,4676.0,4675.9,3.367]
[1755090120613,0.1072,4675.9,4675.8,0.001]
[1755090120916,1.3754887,4675.9,4675.8,0.001]
[1755090121598,1.3754887,4675.9,4675.8,8.492]
[1755090121804,1.3549,4675.9,4675.8,8.492]
[1755090122513,1.9049,4675.9,4675.8,8.491]
[1755090122714,1.22069,4675.9,4675.8,8.491]
[1755090123011,1.22069,4675.9,4675.8,5.125]
[1755090123012,0.79269,4675.9,4675.8,5.125]
[1755090123891,0.79269,4675.9,4675.8,5.1258]
[1755090124102,0.79269,4675.9,4675.8,5.125]
[1755090124302,0.55,4675.8,4675.5,0.001]
[1755090124502,0.13819688,4675.7,4675.5,0.001]
[1755090124700,0.68819688,4675.7,4675.5,0.001]
[1755090125196,0.68819688,4675.7,4675.6,3.366]
[1755090126015,0.68819688,4675.7,4675.6,0.311]
[1755090126206,0.68819688,4675.7,4675.6,3.676]
[1755090128839,0.68819688,4675.7,4675.6,0.311]
[1755090129007,0.55,4675.6,4675.5,0.001]
[1755090129206,0.55,4675.6,4675.5,3.365]
[1755090129207,0.78159856,4675.6,4675.5,3.365]
[1755090130807,0.78159856,4675.6,4675.5,4.2085]
[1755090131130,0.6572,4675.6,4675.5,4.6524]
[1755090131325,0.6572,4675.6,4675.5,4.2085]
[1755090131500,0.6572,4675.6,4675.5,9.3345]
[1755090132227,0.6572,4675.6,4675.5,8.491]
[1755090132826,0.1072,4675.6,4675.5,9.7784]
[1755090134028,0.1064,4675.6,4675.5,9.7792]
[1755090137531,0.1064,4675.6,4675.5,8.4918]
[1755090137833,0.1064,4675.6,4675.5,9.7792]
[1755090139410,0.1072,4675.6,4675.5,9.7792]
[1755090142436,0.1072,4675.6,4675.5,6.3552]
[1755090143504,0.1072,4675.6,4675.5,9.7152]
[1755090145532,0.1072,4675.6,4675.5,5.126]
[1755090145740,0.1072,4675.6,4675.5,8.485]
[1755090147221,1.0852,4675.6,4675.5,8.485]
[1755090147429,2.09539,4675.6,4675.5,8.485]
[1755090148025,0.55,4675.5,4675.3,0.001]
[1755090148238,0.55,4675.5,4675.4,8.485]
[1755090148545,1.7977,4675.5,4675.4,8.485]
[1755090148742,2.007239,4675.5,4675.4,8.485]
[1755090153065,0.759539,4675.5,4675.4,8.485]
[1755090153355,2.043839,4675.5,4675.3,0.001]
[1755090153560,1.581339,4675.5,4675.4,5.126]
[1755090153767,2.043839,4675.5,4675.4,5.126]
[1755090154168,2.043839,4675.5,4675.3,0.001]
[1755090154468,2.0699926,4675.4,4675.3,0.001]
[1755090154652,2.0699926,4675.4,4675.3,3.358]
[1755090154818,0.55,4675.3,4675.1,0.001]
[1755090155018,0.6777887,4675.2,4675.1,0.001]
[1755090155243,1.9620887,4675.2,4675.1,0.001]
[1755090155450,2.17980796,4675.2,4675.1,0.001]
[1755090156049,0.87491926,4675.2,4675.1,3.358]
[1755090156357,0.6572,4675.2,4675.1,3.358]
[1755090159633,1.9415,4675.2,4675.1,0.001]
[1755090160050,1.9620887,4675.2,4675.1,3.357]
[1755090160253,0.55,4675.1,4674.8,0.001]
[1755090160428,0.55,4674.9,4674.8,0.001]
[1755090160629,0.6777887,4674.9,4674.8,3.356]
[1755090160858,0.6777887,4674.9,4674.0,1.2933]
[1755090160859,1.1197,4674.9,4674.0,1.2933]
[1755090161021,1.1402887,4674.9,4674.0,1.2933]
[1755090161222,0.55,4674.7,4674.0,1.2933]
[1755090161551,0.79915,4674.7,4674.6,5.127]
[1755090161753,0.79915,4674.7,4673.9,2.665]
[1755090161928,0.55,4674.7,4674.6,5.126]
[1755090162132,0.6572,4674.6,4673.9,2.665]
[1755090162334,0.6572,4674.6,4674.5,8.482]
[1755090162835,1.9415,4674.6,4674.5,5.126]
[1755090163025,2.13565,4674.6,4674.5,5.126]
[1755090163357,2.13565,4674.6,4673.4,0.8516]
[1755090163557,2.02845,4674.6,4673.4,0.8516]
[1755090163723,0.1072,4673.5,4673.4,0.8516]
[1755090164124,0.1072,4673.5,4673.4,0.8524]
[1755090164354,0.1072,4673.5,4673.4,4.6491]
[1755090164955,0.1072,4673.5,4673.4,5.11601]
[1755090165452,0.1072,4673.5,4673.4,4.6491]
[1755090166160,0.1072,4673.5,4673.4,3.3558]
[1755090166358,0.1072,4673.5,4673.4,0.0008]
[1755090166668,0.1072,4673.5,4673.4,3.3548]
[1755090167338,0.1072,4673.5,4673.4,4.6481]
[1755090169640,0.1072,4673.5,4673.4,5.11501]
[1755090170847,0.1072,4673.5,4673.4,1.76101]
[1755090171159,0.1072,4673.5,4673.4,3.3538]
[1755090171544,0.1072,4673.5,4673.4,11.1468]
[1755090171861,0.1072,4673.5,4673.4,12.4401]
[1755090172067,0.1072,4673.5,4673.4,11.1468]
[1755090172229,0.1072,4673.5,4673.4,7.7938]
[1755090172430,0.1072,4673.5,4673.4,11.1468]
[1755090174048,0.5697,4673.5,4673.4,7.7938]
[1755090174386,0.5697,4673.5,4673.4,11.1468]
[1755090174762,0.5697,4673.5,4673.4,11.1458]
[1755090174957,0.55,4673.4,4673.2,2.666]
[1755090175174,0.55,4673.4,4673.3,8.479]
[1755090175360,0.55,4673.8,4673.3,8.479]
[1755090175570,0.1072,4673.4,4673.3,8.9207]
[1755090175875,0.1072,4673.4,4673.3,8.479]
[1755090177058,0.1072,4673.4,4673.3,9.7723]
[1755090178661,0.1072,4673.4,4673.3,12.7723]
[1755090180284,0.4719,4676.1,4673.4,3.0]
[1755090180551,0.16264193,4676.3,4674.2,10.62817937]
[1755090180759,0.1072,4674.5,4674.3,4.6448]
[1755090180961,0.1072,4674.5,4674.4,4.2938]
[1755090181151,0.02,4676.4,4674.4,4.2938]
[1755090181353,0.02,4676.4,4675.0,3.0]
[1755090181586,0.1072,4675.1,4675.0,3.0]
[1755090181792,0.1072,4675.1,4675.0,14.144]
[1755090182156,0.1072,4675.1,4675.0,15.4378]
[1755090182354,0.1072,4675.1,4675.0,14.6061]
[1755090182676,0.02,4676.4,4675.1,3.0]
[1755090182885,0.02,4676.4,4675.3,3.0]
[1755090182886,0.1072,4675.9,4675.3,3.0]
[1755090183055,0.1072,4675.9,4675.4,7.6438]
[1755090183256,0.02,4676.4,4675.4,7.6438]
[1755090183455,0.1072,4676.1,4675.4,7.751]
[1755090183690,0.1072,4676.1,4675.4,8.5261]
[1755090183988,0.1072,4676.1,4675.4,8.5269]
[1755090186286,0.1072,4676.1,4675.4,7.6446]
[1755090186981,0.02,4676.4,4675.4,7.6436]
[1755090187184,500.1072,4675.5,4675.4,7.6436]
[1755090187983,500.1072,4675.5,4675.4,6.3498]
[1755090188184,500.1092,4675.5,4675.4,3.3488]
[1755090190182,500.5811,4675.5,4675.4,3.3488]
[1755090191267,500.1092,4675.5,4675.4,0.0008]
[1755090191566,500.1092,4675.5,4675.4,11.1388]
[1755090192703,500.1092,4675.5,4675.4,15.4326]
[1755090192704,500.002,4675.5,4675.4,15.4326]
[1755090193397,500.002,4675.5,4675.4,12.7676]
[1755090193798,500.002,4675.5,4675.4,7.6426]
[1755090193997,500.0012,4675.5,4675.4,7.6426]
[1755090194201,500.0012,4675.5,4675.4,8.41758]
[1755090196214,500.0012,4675.5,4675.4,8.52478]
[1755090200681,500.0012,4675.5,4675.4,5.17678]
[1755090201016,500.0012,4675.5,4675.4,8.52178]
[1755090201581,500.0012,4675.5,4675.4,16.30978]
[1755090202321,500.0012,4675.5,4675.4,16.950396]
[1755090203112,486.27180876,4675.5,4675.4,16.950396]
[1755090203314,483.22612205,4675.5,4675.4,14.836396]
[1755090203518,483.22612205,4675.5,4675.4,9.711396]
[1755090204824,471.45807242,4675.5,4675.4,20.32724845]
[1755090205419,471.45807242,4675.5,4675.4,16.43324845]
[1755090205620,471.45807242,4675.5,4675.4,19.77724845]
[1755090205991,471.45727242,4675.5,4675.4,19.77724845]
[1755090209030,471.45727242,4675.5,4675.4,20.32724845]
[1755090209528,471.45727242,4675.5,4675.4,7.865596]
[1755090209719,471.45727242,4675.5,4675.4,9.274096]
[1755090210090,471.45727242,4675.5,4675.4,9.824096]
[1755090211421,471.45727242,4675.5,4675.4,12.488096]
[1755090211719,471.45727242,4675.5,4675.4,17.611096]
[1755090214102,471.45727242,4675.5,4675.4,9.824096]
[1755090215126,469.72301464,4675.5,4675.4,9.824096]
[1755090215338,468.51801336,4675.5,4675.4,9.824096]
[1755090217642,466.39294785,4675.5,4675.4,9.824096]
[1755090217804,462.03625133,4675.5,4675.4,9.824096]
[1755090218205,462.03545133,4675.5,4675.4,9.824096]
[1755090221432,462.03545133,4675.5,4675.4,17.611096]
[1755090221802,460.04335157,4675.5,4675.4,16.661796]
[1755090222005,445.51425413,4675.5,4675.4,14.947096]
[1755090222206,435.71328095,4675.5,4675.4,14.172116]
[1755090222407,432.46467481,4675.5,4675.4,11.73279126]
[1755090222808,432.46467481,4675.5,4675.4,9.45447845]
[1755090223136,420.69662518,4675.5,4675.4,9.65063996]
[1755090223308,414.16452492,4675.5,4675.4,9.65063996]
[1755090223510,412.97739835,4675.5,4675.4,9.65063996]
[1755090223909,403.32991392,4675.5,4675.4,9.65063996]
[1755090224225,396.85842452,4675.5,4675.4,9.65063996]
[1755090224415,393.16272035,4675.5,4675.4,9.65063996]
[1755090224611,392.61272035,4675.5,4675.4,11.89763996]
[1755090225009,359.02050327,4675.5,4675.4,11.89763996]
[1755090225240,300.17554316,4675.5,4675.4,11.89763996]
[1755090225418,283.61031781,4675.5,4675.4,12.97932786]
[1755090225721,265.27764843,4675.5,4675.4,11.89763996]
[1755090226019,252.07033413,4675.5,4675.4,12.97932786]
[1755090226231,241.75441393,4675.5,4675.4,16.79946925]
[1755090226415,221.32286757,4675.5,4675.4,16.79946925]
[1755090226615,215.4765106,4675.5,4675.4,16.79946925]
[1755090226817,203.62842978,4675.5,4675.4,15.71778135]
[1755090227045,178.82364053,4675.5,4675.4,11.89763996]
[1755090227248,172.41872019,4675.5,4675.4,8.89683996]
[1755090227457,166.43913552,4675.5,4675.4,9.97852786]
[1755090227615,160.51189928,4675.5,4675.4,8.89683996]
[1755090227952,154.10719625,4675.5,4675.4,8.89683996]
[1755090228147,149.83755638,4675.5,4675.4,8.89683996]
[1755090228515,145.56413301,4675.5,4675.4,8.89683996]
[1755090228714,141.71966886,4675.5,4675.4,8.89683996]
[1755090229021,141.16966886,4675.5,4675.4,9.97852786]
[1755090229220,135.76289052,4675.5,4675.4,11.89683996]
[1755090229436,135.76289052,4675.5,4675.4,12.97852786]
[1755090231540,135.76289052,4675.5,4675.4,23.42552786]
[1755090232813,114.56289052,4675.5,4675.4,11.5726039]
[1755090233015,93.36289052,4675.5,4675.4,9.7876039]
[1755090233222,80.64289052,4675.5,4675.4,6.8876039]
[1755090233428,67.92289052,4675.5,4675.4,5.346716]
[1755090233651,53.08289052,4675.5,4675.4,4.397416]
[1755090233840,53.08289052,4675.5,4675.4,4.398216]
[1755090234042,53.08289052,4675.5,4675.4,4.948216]
[1755090234243,48.81281475,4675.5,4675.4,4.398216]
[1755090234452,48.81281475,4675.5,4675.4,5.593116]
[1755090234854,43.37632168,4675.5,4675.4,5.593116]
[1755090235226,43.37632168,4675.5,4675.4,1.29559525]
[1755090235526,41.24130248,4675.5,4675.4,2.50731079]
[1755090235958,39.10628285,4675.5,4675.4,1.31891554]
[1755090236139,39.10628285,4675.5,4675.3,0.11220475]
[1755090236342,36.97111926,4675.5,4675.4,3.45269411]
[1755090236626,36.97111926,4675.5,4675.4,4.09302211]
[1755090236826,33.66970026,4675.5,4675.4,4.09302211]
[1755090237132,33.66970026,4675.5,4675.4,7.09302211]
[1755090237333,33.66970026,4675.5,4675.4,7.081528]
[1755090237533,33.66970026,4675.5,4675.4,8.703628]
[1755090237739,29.82489877,4675.5,4675.4,8.703628]
[1755090238125,29.82489877,4675.5,4675.4,9.253628]
[1755090240463,29.82489877,4675.5,4675.4,7.845128]
[1755090241556,29.82489877,4675.5,4675.4,18.289128]
[1755090241927,29.22473461,4675.5,4675.4,18.335128]
[1755090242366,23.78843257,4675.5,4675.4,12.965128]
[1755090242662,21.65336768,4675.5,4675.4,15.673128]
[1755090243051,20.35336768,4675.5,4675.4,11.6348159]
[1755090243253,0.002,4676.0,4675.9,0.7636]
[1755090243452,0.02,4676.4,4675.9,0.7636]
[1755090243453,0.02,4676.4,4676.1,0.7636]
[1755090243766,0.02,4676.4,4676.3,3.7636]
[1755090243963,0.02,4676.4,4676.3,3.88228337]
[1755090244138,0.02,4676.4,4676.3,7.63107097]
[1755090244333,0.02,4676.4,4676.3,7.6195876]
[1755090245066,0.4462,4677.7,4676.3,7.6195876]
[1755090245254,0.4462,4677.7,4676.5,3.7636]
[1755090245451,0.4462,4677.7,4676.9,0.8708]
[1755090245657,0.4462,4677.7,4676.9,7.21427651]
[1755090245852,0.4462,4677.7,4676.9,7.2028]
[1755090246165,0.4462,4677.7,4676.9,7.288149]
[1755090247241,2.2845,4677.9,4676.9,7.288149]
[1755090247242,0.002,4677.9,4676.9,9.888949]
[1755090248333,0.002,4677.9,4677.0,3.7636]
[1755090248540,0.002,4677.9,4677.2,3.7636]
[1755090248844,0.002,4677.9,4677.3,7.10607239]
[1755090249055,0.002,4677.9,4677.3,7.0946]
[1755090249241,0.002,4677.9,4677.3,9.8034]
[1755090251168,0.002,4677.9,4677.8,0.7636]
[1755090251375,0.002,4678.8,4678.2,0.2136]
[1755090251577,0.002,4678.8,4678.7,0.7636]
[1755090251740,0.002,4678.8,4678.7,7.0936]
[1755090251944,0.02598882,4679.5,4679.2,0.55]
[1755090252142,0.4462,4679.9,4679.4,3.55]
[1755090252341,0.1,4682.1,4679.6,3.55]
[1755090252542,0.12,4682.4,4679.6,6.89144567]
[1755090252779,0.1,4682.0,4679.6,6.88]
[1755090252947,2.2825,4680.1,4679.6,6.88]
[1755090253473,2.2825,4680.1,4679.6,3.55]
[1755090253651,0.02,4682.4,4679.6,3.55]
[1755090253652,2.7307,4679.7,4679.6,7.04201524]
[1755090254252,0.4482,4679.7,4679.6,7.04201524]
[1755090254475,0.002,4679.7,4679.6,7.04201524]
[1755090254638,2.7307,4679.7,4679.6,3.71281524]
[1755090254843,2.7307,4679.7,4679.6,6.49181524]
[1755090255257,2.7307,4679.7,4679.6,3.16281524]
[1755090255458,2.7307,4679.7,4679.6,6.49181524]
[1755090257355,2.7307,4679.7,4679.6,6.59901524]
[1755090259381,0.002,4680.2,4679.7,3.55]
[1755090259695,0.4462,4681.1,4680.1,1.55202359]
[1755090259903,0.4462,4681.1,4680.3,3.55]
[1755090260196,0.4462,4681.1,4681.0,0.6572]
[1755090260391,0.4462,4681.1,4681.0,6.9842]
[1755090260600,0.4462,4681.1,4681.0,6.877]
[1755090260801,2.7287,4681.1,4681.0,6.877]
[1755090260967,2.7287,4681.1,4681.0,7.51666]
[1755090261186,0.4462,4681.1,4681.0,7.51666]
[1755090261494,0.4462,4681.1,4681.0,17.95666]
[1755090262058,0.02,4682.4,4681.1,0.55]
[1755090262291,2.7287,4682.3,4681.3,0.55]
[1755090262491,0.4462,4682.2,4681.4,0.01142199]
[1755090262691,0.4462,4682.2,4681.6,0.55]
[1755090262892,0.4462,4682.2,4681.7,3.33742036]
[1755090263094,0.02,4682.4,4681.8,3.326]
[1755090263095,0.4462,4682.1,4681.8,3.326]
[1755090263294,0.02,4682.4,4681.9,0.56141942]
[1755090263471,0.02,4682.4,4682.1,0.55]
[1755090263671,2.7287,4682.3,4682.2,3.326]
[1755090263885,2.7287,4682.3,4681.5,0.55]
[1755090264088,0.4462,4682.2,4681.7,0.55]
[1755090264285,0.4462,4682.2,4681.9,0.55]
[1755090264471,0.02,4682.4,4681.9,0.55]
[1755090264677,0.02,4682.4,4682.1,3.0]
[1755090264993,0.02,4682.4,4682.3,3.0]
[1755090265174,0.02,4682.4,4682.3,0.0008]
[1755090265379,0.02,4682.4,4682.3,3.33821486]
[1755090265577,0.02,4682.4,4682.3,0.0008]
[1755090265886,0.4662,4682.4,4682.3,3.3268]
[1755090266089,2.7487,4682.4,4682.3,3.3268]
[1755090266391,2.7487,4682.4,4682.3,3.3258]
[1755090267482,2.7487,4682.4,4682.3,6.3258]
[1755090268269,2.7487,4682.4,4682.3,3.0008]
[1755090268477,2.7487,4682.4,4682.3,3.48517929]
[1755090268689,3.02357,4682.4,4682.3,3.48517929]
[1755090268876,2.7487,4682.4,4682.3,3.48517929]
[1755090270487,2.7487,4682.4,4682.3,3.59157929]
[1755090271010,2.7487,4682.4,4682.3,0.26657929]
[1755090271210,2.7487,4682.4,4682.3,3.59157929]
[1755090271583,2.8487,4682.4,4682.3,11.2072]
[1755090272421,2.8487,4682.4,4682.3,5.2232]
[1755090272714,3.13357,4682.4,4682.3,0.1072]
[1755090272919,3.13357,4682.4,4682.3,3.4312]
[1755090275181,3.13357,4682.4,4682.3,3.3248]
[1755090275376,3.13557,4682.4,4682.3,3.0008]
[1755090275605,3.13557,4682.4,4682.3,0.0008]
[1755090275912,3.13557,4682.4,4682.3,3.3248]
[1755090276277,3.13477,4682.4,4682.3,0.0008]
[1755090276597,3.68477,4682.4,4682.3,0.0008]
[1755090276794,3.68477,4682.4,4681.6,0.1072]
[1755090276981,0.6712,4682.4,4682.3,0.0008]
[1755090277406,0.7776,4682.4,4682.3,3.3248]
[1755090277610,3.5956,4682.4,4682.3,3.3248]
[1755090280302,3.5956,4682.4,4682.3,0.0008]
[1755090280491,3.5956,4682.4,4682.3,3.3248]
[1755090280692,3.95516,4682.4,4682.3,3.3248]
[1755090280887,3.95516,4682.4,4682.3,0.0008]
[1755090281093,3.95516,4682.4,4682.3,0.8628]
[1755090281327,3.95516,4682.4,4682.3,0.0008]
[1755090281526,3.95516,4682.4,4682.3,11.1018]
[1755090283226,3.95516,4682.4,4682.3,7.7778]
[1755090283420,3.95516,4682.4,4682.3,11.1008]
[1755090283631,3.95516,4682.4,4682.3,5.1178]
[1755090283927,0.48076,4682.4,4682.3,6.3248]
[1755090284089,2.9392,4682.4,4682.3,3.1072]
[1755090284296,0.1212,4682.4,4682.3,6.4302]
[1755090285516,0.0212,4682.4,4682.3,6.4302]
[1755090286036,0.1212,4682.4,4682.3,6.4302]
[1755090287797,0.0212,4682.4,4682.3,6.4302]
[1755090288003,0.0212,4682.4,4682.3,9.1734]
[1755090288435,0.0204,4682.4,4682.3,9.1734]
[1755090288752,0.0204,4682.4,4682.3,5.744]
[1755090288909,0.0204,4682.4,4682.3,6.3238]
[1755090289434,0.0204,4682.4,4682.3,9.067]
[1755090289631,0.0204,4682.4,4682.3,6.3228]
[1755090289831,0.0204,4682.4,4682.3,3.0008]
[1755090290037,0.0204,4682.4,4682.3,6.3228]
[1755090291214,0.0204,4682.4,4682.3,9.066]
[1755090291539,0.0204,4682.4,4682.3,16.842]
[1755090291740,0.0204,4682.4,4682.3,14.182]
[1755090292165,0.0204,4682.4,4682.3,9.066]
[1755090292940,1e-08,4682.4,4682.3,9.066]
[1755090294709,1e-08,4682.4,4682.3,5.8228]
[1755090294907,1e-08,4682.4,4682.3,5.8236]
[1755090295106,1e-08,4682.4,4682.3,0.0008]
[1755090295524,1e-08,4682.4,4682.3,3.3218]
[1755090296837,1e-08,4682.4,4682.3,6.3218]
[1755090297577,1e-08,4682.4,4682.3,6.3228]
[1755090298241,1e-08,4682.4,4682.3,3.3228]
[1755090298747,1e-08,4682.4,4682.3,3.44061486]
[1755090298942,1e-08,4682.4,4682.3,0.1082]
[1755090299157,1e-08,4682.4,4682.3,6.4282]
[1755090300584,0.1,4682.6,4682.3,3.3218]
[1755090300885,0.1,4682.6,4682.4,3.32]
[1755090301547,0.1,4682.6,4682.5,7.775]
[1755090302655,0.10120001,4682.9,4682.5,7.775]
[1755090302855,0.1,4682.6,4682.5,7.775]
[1755090303080,3.20739,4682.6,4682.5,11.095]
[1755090303503,3.20739,4682.6,4682.5,5.115]
[1755090303797,3.20739,4682.6,4682.5,8.435]
[1755090303996,3.20739,4682.6,4682.5,11.4358]
[1755090304767,3.20739,4682.6,4682.5,8.4358]
[1755090305062,3.20739,4682.6,4682.5,6.3208]
[1755090305864,3.20739,4682.6,4682.5,0.0008]
[1755090305865,3.75739,4682.6,4682.5,0.0008]
[1755090306187,3.75739,4682.6,4682.5,3.3208]
[1755090306511,3.20739,4682.6,4682.5,3.3208]
[1755090306663,2.9157,4682.6,4682.5,3.3208]
[1755090311399,2.9157,4682.6,4682.5,0.0008]
[1755090311570,2.9157,4682.6,4682.5,11.0958]
[1755090312106,2.9357,4682.6,4682.5,11.0958]
[1755090312310,3.4857,4682.6,4682.5,7.7768]
[1755090312516,3.79003,4682.6,4682.5,5.1168]
[1755090313112,3.79003,4682.6,4682.5,0.0008]
[1755090313310,0.55,4682.5,4682.3,0.001]
[1755090313615,3.3657,4682.5,4682.4,3.319]
[1755090313769,5.57225568,4682.5,4682.4,3.319]
[1755090314095,5.67865568,4682.5,4682.4,3.319]
[1755090314693,5.69865568,4682.5,4682.4,3.319]
[1755090314904,5.69865568,4682.5,4682.3,0.001]
[1755090315106,0.02669571,4682.4,4682.3,0.001]
[1755090315410,3.74379385,4682.4,4682.3,0.001]
[1755090315918,3.74379385,4682.4,4681.8,0.001]
[1755090315919,0.65,4681.9,4681.8,0.001]
[1755090316128,0.78309856,4681.9,4681.8,0.001]
[1755090316424,3.61879856,4681.9,4681.8,2.692]
[1755090316592,0.55,4681.8,4681.3,0.001]
[1755090316921,0.7572,4681.4,4681.3,0.001]
[1755090317135,0.80390141,4681.4,4681.3,0.001]
[1755090317301,3.61960141,4681.4,4681.3,0.001]
[1755090317697,3.61960141,4681.4,4681.3,2.771]
[1755090318007,3.85486014,4681.4,4681.3,2.771]
[1755090318320,3.95486014,4681.4,4681.3,2.771]
[1755090318724,0.55,4681.3,4680.1,0.13129245]
[1755090318890,0.65,4681.0,4680.1,0.13129245]
[1755090319230,1.14463627,4681.0,4680.9,3.32]
[1755090320230,1.60623627,4681.0,4680.9,3.32]
[1755090320429,1.14463627,4681.0,4680.9,3.32]
[1755090320591,0.7572,4681.0,4680.9,3.32]
[1755090320791,0.7772,4681.0,4680.9,3.32]
[1755090321515,0.7772,4681.0,4680.9,11.098]
[1755090323189,1.2388,4681.0,4680.9,7.779]
[1755090323400,3.95219,4681.0,4680.9,7.779]
[1755090323603,3.5929,4681.0,4680.9,11.097]
[1755090324018,3.5921,4681.0,4680.9,11.0978]
[1755090324218,0.7764,4681.0,4680.9,11.0978]
[1755090324425,0.7764,4681.0,4680.9,8.4368]
[1755090324644,0.9002,4681.0,4680.9,8.4368]
[1755090325299,0.7764,4681.0,4680.9,8.4368]
[1755090325605,0.7764,4681.0,4680.3,0.4377]
[1755090325606,19.2982,4680.9,4680.3,0.4377]
[1755090325814,0.0992,4680.4,4680.3,0.4377]
[1755090326027,0.0992,4680.4,4680.3,2.7993]
[1755090326631,0.0992,4680.4,4680.3,6.1173]
[1755090328143,0.0992,4680.4,4680.3,3.318]
[1755090328957,0.1192,4680.4,4680.1,0.13129245]
[1755090329303,0.1072,4680.3,4680.2,3.0]
[1755090329606,0.1072,4680.3,4680.2,6.318]
[1755090329805,0.1072,4680.3,4680.1,0.13129245]
[1755090329806,0.55,4680.2,4680.1,0.13129245]
[1755090330099,0.91123077,4680.2,4680.1,3.338]
[1755090330439,0.93123077,4680.2,4680.1,3.44929909]
[1755090330934,0.57,4680.2,4680.1,3.44929909]
[1755090331458,0.57,4680.2,4680.1,11.117]
[1755090331626,0.57,4680.2,4680.1,11.22829917]
[1755090331829,3.3792,4680.2,4680.1,11.22829917]
[1755090332448,3.3792,4680.2,4680.1,8.456]
[1755090332751,3.73776,4680.2,4680.1,8.456]
[1755090333952,1.02776,4680.2,4680.1,8.4568]
[1755090334119,0.6692,4680.2,4680.1,8.4568]
[1755090335955,0.6692,4680.2,4680.1,3.3388]
[1755090336258,0.1192,4680.2,4680.1,3.3378]
[1755090336656,0.6692,4680.2,4680.1,3.3378]
[1755090337016,0.1192,4680.2,4680.1,8.9567]
[1755090340649,0.1192,4680.2,4680.1,8.9577]
[1755090341552,0.1192,4680.2,4680.1,16.7387]
[1755090343464,0.1192,4680.2,4680.1,14.1839]
[1755090343842,0.1192,4680.2,4680.1,9.0649]
[1755090345368,0.1192,4680.2,4680.1,5.7479]
[1755090345571,0.1192,4680.2,4680.1,9.0639]
[1755090351272,0.0992,4680.7,4680.2,3.0]
[1755090351448,0.0992,4680.7,4680.6,8.118]
[1755090351656,0.0992,4680.7,4680.6,11.5392]
[1755090351866,0.0992,4680.7,4680.6,14.1581]
[1755090353902,19.2974,4680.9,4680.7,3.0]
[1755090354073,19.2974,4680.9,4680.8,6.314]
[1755090354256,19.2974,4680.9,4680.8,8.9329]
[1755090354886,19.2974,4680.9,4680.8,5.6189]
[1755090355068,19.2974,4680.9,4680.8,8.9329]
[1755090356588,19.3966,4680.9,4680.8,8.9329]
[1755090356990,19.2974,4680.9,4680.8,8.9329]
[1755090357328,19.2974,4680.9,4680.8,8.9337]